[Event "Titled Tuesday Blitz May 9 Early 2023"]
[White "ArtemDyachuk"]
[Black "Goswami, Vedant"]
[BlackFideId "5003725"]
[WhiteElo "2530"]
[BlackElo "2011"]
[Result "1-0"]
[Round "10"]
[TimeControl "180+2"]
[Date "2023.05.09"]
[WhiteClock "0:00:06"]
[BlackClock "0:00:15"]

1. c4 {[%clk 0:03:00]}  a6 {[%clk 0:02:58]} 2. Nc3 {[%clk 0:02:55]}  e6 {[%clk 0:02:58]} 3. e4 {[%clk 0:02:49]}  c5 {[%clk 0:02:56]} 4. Nf3 {[%clk 0:02:46]}  Nc6 {[%clk 0:02:53]} 5. g3 {[%clk 0:02:35]}  d6 {[%clk 0:02:50]} 6. Bg2 {[%clk 0:02:35]}  e5 {[%clk 0:02:49]} 7. O-O {[%clk 0:02:33]}  Nf6 {[%clk 0:02:48]} 8. d3 {[%clk 0:02:28]}  Be7 {[%clk 0:02:48]} 9. Nh4 {[%clk 0:02:23]}  O-O {[%clk 0:02:36]} 10. Nf5 {[%clk 0:02:11]}  Rb8 {[%clk 0:02:21]} 11. Bg5 {[%clk 0:02:06]}  Nd4 {[%clk 0:02:19]} 12. Nxe7+ {[%clk 0:02:05]}  Qxe7 {[%clk 0:02:16]} 13. Nd5 {[%clk 0:02:04]}  Qd8 {[%clk 0:02:15]} 14. f4 {[%clk 0:02:00]}  Nxd5 {[%clk 0:01:52]} 15. Bxd8 {[%clk 0:01:56]}  Ne3 {[%clk 0:01:52]} 16. Qc1 {[%clk 0:01:53]}  Ne2+ {[%clk 0:01:50]} 17. Kf2 {[%clk 0:01:27]}  Nxc1 {[%clk 0:01:48]} 18. Kxe3 {[%clk 0:01:16]}  Rxd8 {[%clk 0:01:35]} 19. Raxc1 {[%clk 0:01:10]}  b5 {[%clk 0:01:27]} 20. cxb5 {[%clk 0:01:06]}  Rxb5 {[%clk 0:01:15]} 21. b3 {[%clk 0:01:01]}  f6 {[%clk 0:01:13]} 22. f5 {[%clk 0:00:53]}  Bd7 {[%clk 0:01:11]} 23. g4 {[%clk 0:00:51]}  a5 {[%clk 0:01:10]} 24. Rc4 {[%clk 0:00:46]}  Rb4 {[%clk 0:01:09]} 25. Rfc1 {[%clk 0:00:44]}  Rdb8 {[%clk 0:01:08]} 26. h4 {[%clk 0:00:39]}  h6 {[%clk 0:01:06]} 27. Bf3 {[%clk 0:00:38]}  Rxc4 {[%clk 0:00:52]} 28. dxc4 {[%clk 0:00:20]}  Kf7 {[%clk 0:00:52]} 29. Bd1 {[%clk 0:00:18]}  Ke7 {[%clk 0:00:52]} 30. Kd3 {[%clk 0:00:19]}  Bc6 {[%clk 0:00:52]} 31. Bc2 {[%clk 0:00:18]}  a4 {[%clk 0:00:46]} 32. bxa4 {[%clk 0:00:16]}  Rb4 {[%clk 0:00:44]} 33. Kc3 {[%clk 0:00:14]}  Bxa4 {[%clk 0:00:43]} 34. a3 {[%clk 0:00:14]}  Bxc2 {[%clk 0:00:34]} 35. axb4 {[%clk 0:00:14]}  Bxe4 {[%clk 0:00:35]} 36. b5 {[%clk 0:00:14]}  d5 {[%clk 0:00:27]} 37. Ra1 {[%clk 0:00:13]}  d4+ {[%clk 0:00:26]} 38. Kd2 {[%clk 0:00:13]}  Bf3 {[%clk 0:00:25]} 39. Ra7+ {[%clk 0:00:12]}  Kd6 {[%clk 0:00:24]} 40. Rxg7 {[%clk 0:00:10]}  e4 {[%clk 0:00:25]} 41. Rg8 {[%clk 0:00:05]}  e3+ {[%clk 0:00:25]} 42. Ke1 {[%clk 0:00:05]}  Ke5 {[%clk 0:00:24]} 43. Rd8 {[%clk 0:00:04]}  Kf4 {[%clk 0:00:22]} 44. b6 {[%clk 0:00:04]}  Kxg4 {[%clk 0:00:22]} 45. Rd5 {[%clk 0:00:04]}  Bxd5 {[%clk 0:00:20]} 46. cxd5 {[%clk 0:00:04]}  Kf3 {[%clk 0:00:21]} 47. b7 {[%clk 0:00:04]}  d3 {[%clk 0:00:22]} 48. b8=Q {[%clk 0:00:04]}  d2+ {[%clk 0:00:22]} 49. Kd1 {[%clk 0:00:04]}  Ke4 {[%clk 0:00:18]} 50. Qh2 {[%clk 0:00:04]}  Kd3 {[%clk 0:00:18]} 51. Qe2+ {[%clk 0:00:03]}  Kd4 {[%clk 0:00:18]} 52. d6 {[%clk 0:00:04]}  c4 {[%clk 0:00:18]} 53. d7 {[%clk 0:00:05]}  c3 {[%clk 0:00:15]} 54. d8=Q+ {[%clk 0:00:06]} 1-0


[Site "https://www.chess.com"]

[Event "Titled Tuesday Blitz May 9 Early 2023"]
[White "Makhmudov, Shukhrat"]
[Black "Moore, Nicholas"]
[WhiteFideId "14200775"]
[BlackFideId "4303709"]
[WhiteElo "2135"]
[BlackElo "2521"]
[Result "1-0"]
[Round "10"]
[TimeControl "180+2"]
[Date "2023.05.09"]
[WhiteClock "0:00:22"]
[BlackClock "0:00:47"]

1. e4 {[%clk 0:03:00]}  c5 {[%clk 0:02:59]} 2. Nf3 {[%clk 0:03:00]}  e6 {[%clk 0:03:00]} 3. d4 {[%clk 0:03:00]}  cxd4 {[%clk 0:03:00]} 4. Nxd4 {[%clk 0:03:01]}  Nc6 {[%clk 0:03:01]} 5. Nc3 {[%clk 0:03:00]}  Qc7 {[%clk 0:03:01]} 6. Nxc6 {[%clk 0:02:58]}  bxc6 {[%clk 0:03:01]} 7. Bd3 {[%clk 0:02:58]}  d5 {[%clk 0:03:00]} 8. O-O {[%clk 0:02:58]}  Nf6 {[%clk 0:02:59]} 9. Re1 {[%clk 0:02:58]}  Bd6 {[%clk 0:02:58]} 10. h3 {[%clk 0:02:47]}  a6 {[%clk 0:02:54]} 11. Bg5 {[%clk 0:02:46]}  O-O {[%clk 0:02:46]} 12. Bxf6 {[%clk 0:02:41]}  gxf6 {[%clk 0:02:46]} 13. Qh5 {[%clk 0:02:35]}  Bh2+ {[%clk 0:01:43]} 14. Kh1 {[%clk 0:02:34]}  d4 {[%clk 0:01:43]} 15. Ne2 {[%clk 0:01:50]}  Rd8 {[%clk 0:01:29]} 16. g3 {[%clk 0:01:47]}  c5 {[%clk 0:01:26]} 17. b3 {[%clk 0:01:46]}  Bxg3 {[%clk 0:01:25]} 18. Rg1 {[%clk 0:01:41]}  Kf8 {[%clk 0:01:24]} 19. Rxg3 {[%clk 0:01:35]}  Ke7 {[%clk 0:01:24]} 20. Rg7 {[%clk 0:01:35]}  Rf8 {[%clk 0:01:24]} 21. f4 {[%clk 0:01:32]}  Bb7 {[%clk 0:01:25]} 22. Kg1 {[%clk 0:01:29]}  a5 {[%clk 0:01:10]} 23. a4 {[%clk 0:01:29]}  Rad8 {[%clk 0:01:06]} 24. Kf2 {[%clk 0:01:08]}  Qb6 {[%clk 0:01:03]} 25. Rag1 {[%clk 0:01:04]}  c4 {[%clk 0:01:02]} 26. bxc4 {[%clk 0:01:01]}  Bxe4 {[%clk 0:01:02]} 27. c5 {[%clk 0:00:38]}  Qb4 {[%clk 0:01:01]} 28. Bxe4 {[%clk 0:00:37]}  Qd2 {[%clk 0:01:00]} 29. Qf3 {[%clk 0:00:35]}  f5 {[%clk 0:00:59]} 30. Bd3 {[%clk 0:00:35]}  Rd5 {[%clk 0:00:58]} 31. Rxh7 {[%clk 0:00:27]}  Rxc5 {[%clk 0:00:58]} 32. Rgg7 {[%clk 0:00:27]}  Rc3 {[%clk 0:00:57]} 33. Qb7+ {[%clk 0:00:27]}  Kd6 {[%clk 0:00:56]} 34. Rxf7 {[%clk 0:00:26]}  Rxf7 {[%clk 0:00:54]} 35. Rxf7 {[%clk 0:00:26]}  Qe3+ {[%clk 0:00:53]} 36. Ke1 {[%clk 0:00:23]}  Ra3 {[%clk 0:00:47]} 37. Rd7+ {[%clk 0:00:22]}  Kc5 {[%clk 0:00:47]} 38. Qb5# {[%clk 0:00:22]} 1-0


[Site "https://www.chess.com"]

[Event "Titled Tuesday Blitz May 9 Early 2023"]
[White "Rosenberg, Evan S"]
[Black "Namitbir Singh Walia"]
[WhiteFideId "2019299"]
[BlackFideId "35071068"]
[WhiteElo "2282"]
[BlackElo "2239"]
[Result "1-0"]
[Round "10"]
[TimeControl "180+2"]
[Date "2023.05.09"]
[WhiteClock "0:00:30"]
[BlackClock "0:00:20"]

1. d4 {[%clk 0:03:00]}  Nf6 {[%clk 0:02:58]} 2. Nf3 {[%clk 0:03:01]}  c5 {[%clk 0:02:58]} 3. d5 {[%clk 0:03:01]}  d6 {[%clk 0:02:57]} 4. Nc3 {[%clk 0:03:00]}  e6 {[%clk 0:02:54]} 5. e4 {[%clk 0:02:58]}  exd5 {[%clk 0:02:53]} 6. exd5 {[%clk 0:02:55]}  g6 {[%clk 0:02:52]} 7. Bb5+ {[%clk 0:02:56]}  Bd7 {[%clk 0:02:49]} 8. a4 {[%clk 0:02:56]}  Bg7 {[%clk 0:02:48]} 9. O-O {[%clk 0:02:57]}  O-O {[%clk 0:02:48]} 10. h3 {[%clk 0:02:57]}  Bxb5 {[%clk 0:02:34]} 11. axb5 {[%clk 0:02:55]}  Nbd7 {[%clk 0:02:35]} 12. Bf4 {[%clk 0:02:40]}  Nb6 {[%clk 0:02:35]} 13. Re1 {[%clk 0:02:32]}  Qd7 {[%clk 0:02:34]} 14. Nd2 {[%clk 0:02:19]}  Nfxd5 {[%clk 0:02:30]} 15. Nxd5 {[%clk 0:02:19]}  Nxd5 {[%clk 0:02:31]} 16. Bg3 {[%clk 0:02:11]}  Bxb2 {[%clk 0:02:24]} 17. Nc4 {[%clk 0:02:11]}  Bxa1 {[%clk 0:02:23]} 18. Qxa1 {[%clk 0:02:06]}  Rfe8 {[%clk 0:02:20]} 19. Rd1 {[%clk 0:02:02]}  Nb6 {[%clk 0:02:14]} 20. Nxd6 {[%clk 0:01:31]}  Re6 {[%clk 0:02:06]} 21. Nf5 {[%clk 0:01:25]}  Re1+ {[%clk 0:01:41]} 22. Rxe1 {[%clk 0:01:19]}  Qxf5 {[%clk 0:01:41]} 23. Re7 {[%clk 0:01:10]}  Qd5 {[%clk 0:01:27]} 24. Qf6 {[%clk 0:01:04]}  Nd7 {[%clk 0:01:22]} 25. Rxd7 {[%clk 0:01:00]}  Qxd7 {[%clk 0:01:17]} 26. Be5 {[%clk 0:01:01]}  Kf8 {[%clk 0:01:06]} 27. Qh8+ {[%clk 0:00:57]}  Ke7 {[%clk 0:01:06]} 28. Qxa8 {[%clk 0:00:58]}  Qxb5 {[%clk 0:00:57]} 29. Qxa7 {[%clk 0:00:56]}  Ke6 {[%clk 0:00:53]} 30. Bg3 {[%clk 0:00:53]}  h5 {[%clk 0:00:53]} 31. Qa2+ {[%clk 0:00:49]}  c4 {[%clk 0:00:52]} 32. c3 {[%clk 0:00:47]}  Qb3 {[%clk 0:00:45]} 33. Qe2+ {[%clk 0:00:46]}  Kd7 {[%clk 0:00:45]} 34. Qe5 {[%clk 0:00:44]}  b5 {[%clk 0:00:43]} 35. Qd6+ {[%clk 0:00:43]}  Ke8 {[%clk 0:00:39]} 36. Be5 {[%clk 0:00:43]}  Qb1+ {[%clk 0:00:24]} 37. Kh2 {[%clk 0:00:43]}  Qf5 {[%clk 0:00:24]} 38. Bf6 {[%clk 0:00:38]}  Qd7 {[%clk 0:00:20]} 39. Qb8+ {[%clk 0:00:30]} 1-0


[Site "https://www.chess.com"]

[Event "Titled Tuesday Blitz May 9 Early 2023"]
[White "Chernomordik, Pavel"]
[Black "Zhu, Jiner"]
[WhiteFideId "2804530"]
[BlackFideId "8608059"]
[WhiteElo "2193"]
[BlackElo "2384"]
[Result "0-1"]
[Round "10"]
[TimeControl "180+2"]
[Date "2023.05.09"]
[WhiteClock "0:00:00"]
[BlackClock "0:00:12"]

1. e4 {[%clk 0:03:00]}  e5 {[%clk 0:02:59]} 2. Nf3 {[%clk 0:02:59]}  Nc6 {[%clk 0:02:59]} 3. Bb5 {[%clk 0:02:58]}  a6 {[%clk 0:02:54]} 4. Ba4 {[%clk 0:02:57]}  Nf6 {[%clk 0:02:54]} 5. Qe2 {[%clk 0:02:57]}  b5 {[%clk 0:02:53]} 6. Bb3 {[%clk 0:02:56]}  Be7 {[%clk 0:02:53]} 7. d4 {[%clk 0:02:55]}  d6 {[%clk 0:02:51]} 8. c3 {[%clk 0:02:50]}  Bg4 {[%clk 0:02:50]} 9. Be3 {[%clk 0:02:45]}  O-O {[%clk 0:02:48]} 10. h3 {[%clk 0:02:41]}  Bh5 {[%clk 0:02:47]} 11. Nbd2 {[%clk 0:02:36]}  Na5 {[%clk 0:02:42]} 12. Bc2 {[%clk 0:02:17]}  exd4 {[%clk 0:02:42]} 13. cxd4 {[%clk 0:02:15]}  c5 {[%clk 0:02:42]} 14. d5 {[%clk 0:02:06]}  Re8 {[%clk 0:02:39]} 15. O-O {[%clk 0:02:05]}  Nd7 {[%clk 0:02:37]} 16. Bf4 {[%clk 0:02:00]}  Bf6 {[%clk 0:02:24]} 17. Rab1 {[%clk 0:01:54]}  Ne5 {[%clk 0:02:21]} 18. b3 {[%clk 0:01:40]}  c4 {[%clk 0:02:02]} 19. g4 {[%clk 0:01:21]}  cxb3 {[%clk 0:01:49]} 20. axb3 {[%clk 0:01:19]}  Rc8 {[%clk 0:01:47]} 21. Rfc1 {[%clk 0:01:14]}  Bg6 {[%clk 0:01:46]} 22. Nxe5 {[%clk 0:00:55]}  dxe5 {[%clk 0:01:33]} 23. Be3 {[%clk 0:00:54]}  Nb7 {[%clk 0:01:31]} 24. Ra1 {[%clk 0:00:52]}  Nc5 {[%clk 0:01:20]} 25. b4 {[%clk 0:00:44]}  Nb7 {[%clk 0:01:04]} 26. Rxa6 {[%clk 0:00:37]}  Qd7 {[%clk 0:01:03]} 27. Qf1 {[%clk 0:00:26]}  h5 {[%clk 0:01:02]} 28. f3 {[%clk 0:00:24]}  hxg4 {[%clk 0:00:57]} 29. hxg4 {[%clk 0:00:22]}  Rc3 {[%clk 0:00:40]} 30. Bd3 {[%clk 0:00:20]}  Rec8 {[%clk 0:00:41]} 31. Rxc3 {[%clk 0:00:18]}  Rxc3 {[%clk 0:00:42]} 32. Ra8+ {[%clk 0:00:16]}  Nd8 {[%clk 0:00:40]} 33. g5 {[%clk 0:00:10]}  Be7 {[%clk 0:00:39]} 34. Nb1 {[%clk 0:00:09]}  Rb3 {[%clk 0:00:26]} 35. Ra7 {[%clk 0:00:08]}  Qe8 {[%clk 0:00:16]} 36. Bxb5 {[%clk 0:00:07]}  Qf8 {[%clk 0:00:15]} 37. Bd2 {[%clk 0:00:04]}  Bxb4 {[%clk 0:00:13]} 38. Bc4 {[%clk 0:00:03]}  Rxb1 {[%clk 0:00:11]} 39. Qxb1 {[%clk 0:00:03]}  Bxd2 {[%clk 0:00:12]} 40. Qb6 {[%clk 0:00:00]}  Bxg5 {[%clk 0:00:12]} 0-1


[Site "https://www.chess.com"]

[Event "Titled Tuesday Blitz May 9 Early 2023"]
[White "Yelisieiev, Yevhenii"]
[Black "Rottenwohrer Suarez, Juan"]
[WhiteFideId "14139642"]
[BlackFideId "32068182"]
[WhiteElo "2403"]
[BlackElo "2174"]
[Result "0-1"]
[Round "10"]
[TimeControl "180+2"]
[Date "2023.05.09"]
[WhiteClock "0:00:00"]
[BlackClock "0:00:26"]

1. d4 {[%clk 0:00:23]}  Nf6 {[%clk 0:02:53]} 2. Nf3 {[%clk 0:00:24]}  g6 {[%clk 0:02:53]} 3. g3 {[%clk 0:00:24]}  Bg7 {[%clk 0:02:54]} 4. Bg2 {[%clk 0:00:25]}  b6 {[%clk 0:02:52]} 5. O-O {[%clk 0:00:26]}  Bb7 {[%clk 0:02:53]} 6. b3 {[%clk 0:00:26]}  O-O {[%clk 0:02:53]} 7. Bb2 {[%clk 0:00:27]}  c5 {[%clk 0:02:53]} 8. c4 {[%clk 0:00:24]}  cxd4 {[%clk 0:02:52]} 9. Nxd4 {[%clk 0:00:24]}  Bxg2 {[%clk 0:02:52]} 10. Kxg2 {[%clk 0:00:25]}  Qc7 {[%clk 0:02:50]} 11. Nc3 {[%clk 0:00:25]}  Nc6 {[%clk 0:02:46]} 12. f3 {[%clk 0:00:25]}  Rfd8 {[%clk 0:02:33]} 13. Rc1 {[%clk 0:00:25]}  Qb7 {[%clk 0:02:32]} 14. e4 {[%clk 0:00:24]}  a6 {[%clk 0:01:48]} 15. Nd5 {[%clk 0:00:24]}  Ne8 {[%clk 0:01:13]} 16. Nxc6 {[%clk 0:00:19]}  dxc6 {[%clk 0:01:13]} 17. Bxg7 {[%clk 0:00:18]}  Nxg7 {[%clk 0:01:10]} 18. Qd4 {[%clk 0:00:06]}  cxd5 {[%clk 0:00:56]} 19. exd5 {[%clk 0:00:05]}  Nf5 {[%clk 0:00:49]} 20. Qe4 {[%clk 0:00:05]}  b5 {[%clk 0:00:50]} 21. Rfe1 {[%clk 0:00:04]}  bxc4 {[%clk 0:00:49]} 22. bxc4 {[%clk 0:00:05]}  Rac8 {[%clk 0:00:40]} 23. g4 {[%clk 0:00:05]}  Nd6 {[%clk 0:00:39]} 24. Qd4 {[%clk 0:00:03]}  Qb4 {[%clk 0:00:34]} 25. a3 {[%clk 0:00:00]}  Rxc4 {[%clk 0:00:26]} 0-1


[Site "https://www.chess.com"]

[Event "Titled Tuesday Blitz May 9 Early 2023"]
[White "Luberanski, Jakub"]
[Black "Nguyen Hong Nhung"]
[WhiteFideId "21830509"]
[BlackFideId "12412201"]
[WhiteElo "2255"]
[BlackElo "1996"]
[Result "1-0"]
[Round "10"]
[TimeControl "180+2"]
[Date "2023.05.09"]
[WhiteClock "0:01:09"]
[BlackClock "0:01:05"]

1. e4 {[%clk 0:03:00]}  c5 {[%clk 0:02:54]} 2. Nf3 {[%clk 0:02:57]}  e6 {[%clk 0:02:52]} 3. d4 {[%clk 0:02:57]}  cxd4 {[%clk 0:02:53]} 4. Nxd4 {[%clk 0:02:57]}  Nc6 {[%clk 0:02:54]} 5. Nc3 {[%clk 0:02:56]}  Nf6 {[%clk 0:02:53]} 6. Nxc6 {[%clk 0:02:55]}  bxc6 {[%clk 0:02:54]} 7. e5 {[%clk 0:02:56]}  Nd5 {[%clk 0:02:53]} 8. Ne4 {[%clk 0:02:56]}  Bb7 {[%clk 0:02:52]} 9. c4 {[%clk 0:02:53]}  Nb4 {[%clk 0:02:50]} 10. Bg5 {[%clk 0:02:19]}  Qa5 {[%clk 0:02:42]} 11. Nd6+ {[%clk 0:02:11]}  Bxd6 {[%clk 0:02:41]} 12. Qxd6 {[%clk 0:02:12]}  f6 {[%clk 0:02:28]} 13. Bd2 {[%clk 0:02:05]}  c5 {[%clk 0:02:12]} 14. exf6 {[%clk 0:01:56]}  gxf6 {[%clk 0:02:08]} 15. Rd1 {[%clk 0:01:43]}  Nc2+ {[%clk 0:02:03]} 16. Ke2 {[%clk 0:01:40]}  Qxa2 {[%clk 0:02:03]} 17. Bc3 {[%clk 0:01:34]}  Qxc4+ {[%clk 0:01:54]} 18. Kd2 {[%clk 0:01:32]}  Qb3 {[%clk 0:01:07]} 19. Bxf6 {[%clk 0:01:14]}  Kf7 {[%clk 0:01:07]} 20. Qe7+ {[%clk 0:01:11]}  Kg6 {[%clk 0:01:06]} 21. Qg7+ {[%clk 0:01:07]}  Kf5 {[%clk 0:01:06]} 22. Qg5+ {[%clk 0:01:08]}  Ke4 {[%clk 0:01:05]} 23. Qe5# {[%clk 0:01:09]} 1-0


[Site "https://www.chess.com"]

[Event "Titled Tuesday Blitz May 9 Early 2023"]
[White "Bilan, Danila"]
[Black "Omariev, Maksim"]
[WhiteFideId "24161918"]
[BlackFideId "4193423"]
[WhiteElo "2182"]
[BlackElo "2387"]
[Result "1-0"]
[Round "10"]
[TimeControl "180+2"]
[Date "2023.05.09"]
[WhiteClock "0:00:06"]
[BlackClock "0:00:06"]

1. d4 {[%clk 0:02:59]}  h5 {[%clk 0:02:51]} 2. Nf3 {[%clk 0:02:57]}  h4 {[%clk 0:02:23]} 3. h3 {[%clk 0:02:52]}  e6 {[%clk 0:02:22]} 4. e4 {[%clk 0:02:52]}  d5 {[%clk 0:02:22]} 5. e5 {[%clk 0:02:43]}  c5 {[%clk 0:02:22]} 6. c3 {[%clk 0:02:42]}  Nd7 {[%clk 0:02:21]} 7. Bd3 {[%clk 0:02:33]}  Nh6 {[%clk 0:02:18]} 8. Bg5 {[%clk 0:02:19]}  Be7 {[%clk 0:02:17]} 9. Qd2 {[%clk 0:02:14]}  c4 {[%clk 0:02:08]} 10. Bc2 {[%clk 0:02:08]}  Nf5 {[%clk 0:02:07]} 11. Bxf5 {[%clk 0:02:01]}  exf5 {[%clk 0:02:07]} 12. Na3 {[%clk 0:01:54]}  a6 {[%clk 0:02:00]} 13. Nc2 {[%clk 0:01:45]}  Nf8 {[%clk 0:01:57]} 14. Bxe7 {[%clk 0:01:41]}  Qxe7 {[%clk 0:01:56]} 15. Ng5 {[%clk 0:01:25]}  Ne6 {[%clk 0:01:50]} 16. Nxe6 {[%clk 0:01:16]}  Bxe6 {[%clk 0:01:51]} 17. f4 {[%clk 0:01:13]}  Rh6 {[%clk 0:01:47]} 18. Ne3 {[%clk 0:01:10]}  Rg6 {[%clk 0:01:47]} 19. Qf2 {[%clk 0:01:06]}  b5 {[%clk 0:01:41]} 20. O-O {[%clk 0:00:49]}  Ra7 {[%clk 0:01:36]} 21. b3 {[%clk 0:00:45]}  Kf8 {[%clk 0:01:28]} 22. bxc4 {[%clk 0:00:39]}  bxc4 {[%clk 0:01:28]} 23. Rfb1 {[%clk 0:00:33]}  Rb7 {[%clk 0:01:28]} 24. Qc2 {[%clk 0:00:29]}  Kg8 {[%clk 0:00:31]} 25. Rxb7 {[%clk 0:00:09]}  Qxb7 {[%clk 0:00:29]} 26. Rb1 {[%clk 0:00:10]}  Qd7 {[%clk 0:00:28]} 27. Rb8+ {[%clk 0:00:07]}  Kh7 {[%clk 0:00:28]} 28. Rb6 {[%clk 0:00:08]}  a5 {[%clk 0:00:27]} 29. Rd6 {[%clk 0:00:08]}  Qb7 {[%clk 0:00:25]} 30. Nxf5 {[%clk 0:00:06]}  Bxf5 {[%clk 0:00:15]} 31. Qxf5 {[%clk 0:00:07]}  Qe7 {[%clk 0:00:02]} 32. Qh5+ {[%clk 0:00:01]}  Rh6 {[%clk 0:00:03]} 33. Rxh6+ {[%clk 0:00:02]}  gxh6 {[%clk 0:00:04]} 34. Qf5+ {[%clk 0:00:01]}  Kg7 {[%clk 0:00:04]} 35. Kh2 {[%clk 0:00:02]}  a4 {[%clk 0:00:03]} 36. Qc8 {[%clk 0:00:02]}  a3 {[%clk 0:00:03]} 37. Qg4+ {[%clk 0:00:02]}  Kh7 {[%clk 0:00:03]} 38. f5 {[%clk 0:00:03]}  Qg5 {[%clk 0:00:02]} 39. Qxg5 {[%clk 0:00:02]}  hxg5 {[%clk 0:00:03]} 40. Kg1 {[%clk 0:00:03]}  Kh6 {[%clk 0:00:03]} 41. Kf2 {[%clk 0:00:03]}  g4 {[%clk 0:00:03]} 42. hxg4 {[%clk 0:00:02]}  Kg5 {[%clk 0:00:04]} 43. Kf3 {[%clk 0:00:03]}  f6 {[%clk 0:00:02]} 44. e6 {[%clk 0:00:03]}  h3 {[%clk 0:00:03]} 45. gxh3 {[%clk 0:00:03]}  Kh4 {[%clk 0:00:04]} 46. e7 {[%clk 0:00:04]}  Kxh3 {[%clk 0:00:05]} 47. e8=Q {[%clk 0:00:04]}  Kh2 {[%clk 0:00:06]} 48. g5 {[%clk 0:00:05]}  Kg1 {[%clk 0:00:07]} 49. Qe2 {[%clk 0:00:05]}  Kh1 {[%clk 0:00:06]} 50. Qg2# {[%clk 0:00:06]} 1-0


[Site "https://www.chess.com"]

[Event "Titled Tuesday Blitz May 9 Early 2023"]
[White "ElenGajger"]
[Black "Mazurkiewicz, Michal"]
[BlackFideId "1124943"]
[WhiteElo "2469"]
[BlackElo "2054"]
[Result "0-1"]
[Round "10"]
[TimeControl "180+2"]
[Date "2023.05.09"]
[WhiteClock "0:00:43"]
[BlackClock "0:01:26"]

1. e4 {[%clk 0:03:00]}  d6 {[%clk 0:02:59]} 2. d4 {[%clk 0:02:59]}  Nf6 {[%clk 0:02:58]} 3. Nc3 {[%clk 0:02:58]}  c6 {[%clk 0:02:58]} 4. g3 {[%clk 0:02:58]}  e5 {[%clk 0:02:58]} 5. Nge2 {[%clk 0:02:57]}  Be7 {[%clk 0:02:58]} 6. Bg2 {[%clk 0:02:58]}  O-O {[%clk 0:02:57]} 7. O-O {[%clk 0:02:58]}  b5 {[%clk 0:02:49]} 8. a3 {[%clk 0:02:36]}  a6 {[%clk 0:02:41]} 9. h3 {[%clk 0:02:31]}  Nbd7 {[%clk 0:02:41]} 10. b3 {[%clk 0:02:26]}  Bb7 {[%clk 0:02:35]} 11. Bb2 {[%clk 0:02:24]}  Re8 {[%clk 0:02:20]} 12. Qd2 {[%clk 0:02:22]}  Qc7 {[%clk 0:02:08]} 13. Rad1 {[%clk 0:02:20]}  Rad8 {[%clk 0:02:08]} 14. Rfe1 {[%clk 0:02:16]}  Bf8 {[%clk 0:02:08]} 15. Qc1 {[%clk 0:02:15]}  d5 {[%clk 0:01:54]} 16. exd5 {[%clk 0:02:05]}  cxd5 {[%clk 0:01:51]} 17. dxe5 {[%clk 0:02:00]}  Nxe5 {[%clk 0:01:50]} 18. Nd4 {[%clk 0:01:56]}  Bxa3 {[%clk 0:01:41]} 19. Ncxb5 {[%clk 0:01:16]}  axb5 {[%clk 0:01:39]} 20. Bxa3 {[%clk 0:01:15]}  Qb6 {[%clk 0:01:37]} 21. Bb4 {[%clk 0:01:05]}  Ne4 {[%clk 0:01:33]} 22. Nf5 {[%clk 0:00:46]}  Qxf2+ {[%clk 0:01:27]} 23. Kh1 {[%clk 0:00:46]}  Qxf5 {[%clk 0:01:27]} 24. Rf1 {[%clk 0:00:43]}  Nxg3+ {[%clk 0:01:26]} 0-1


[Site "https://www.chess.com"]

[Event "Titled Tuesday Blitz May 9 Early 2023"]
[White "Harriott, Tyrell"]
[Black "Bettalli, Francesco"]
[WhiteFideId "2086484"]
[BlackFideId "2816453"]
[WhiteElo "2107"]
[BlackElo "2216"]
[Result "0-1"]
[Round "10"]
[TimeControl "180+2"]
[Date "2023.05.09"]
[WhiteClock "0:00:08"]
[BlackClock "0:02:04"]

1. d4 {[%clk 0:03:00]}  g6 {[%clk 0:02:59]} 2. e3 {[%clk 0:03:00]}  Bg7 {[%clk 0:03:00]} 3. Bd3 {[%clk 0:02:56]}  c5 {[%clk 0:03:00]} 4. c3 {[%clk 0:02:56]}  cxd4 {[%clk 0:03:01]} 5. exd4 {[%clk 0:02:56]}  d5 {[%clk 0:03:02]} 6. f4 {[%clk 0:02:56]}  Nc6 {[%clk 0:03:02]} 7. Nf3 {[%clk 0:02:55]}  Bf5 {[%clk 0:03:03]} 8. O-O {[%clk 0:02:55]}  e6 {[%clk 0:03:03]} 9. Ne5 {[%clk 0:02:53]}  Nge7 {[%clk 0:03:02]} 10. Be2 {[%clk 0:02:51]}  O-O {[%clk 0:03:02]} 11. g4 {[%clk 0:02:50]}  Be4 {[%clk 0:03:03]} 12. Nd2 {[%clk 0:02:50]}  Nxe5 {[%clk 0:03:03]} 13. Nxe4 {[%clk 0:02:48]}  dxe4 {[%clk 0:03:01]} 14. fxe5 {[%clk 0:02:48]}  Qb6 {[%clk 0:03:01]} 15. Rf2 {[%clk 0:02:41]}  Rad8 {[%clk 0:02:59]} 16. Qc2 {[%clk 0:02:40]}  Qc6 {[%clk 0:02:53]} 17. Bf1 {[%clk 0:02:29]}  b5 {[%clk 0:02:47]} 18. a3 {[%clk 0:02:28]}  a5 {[%clk 0:02:47]} 19. Bg5 {[%clk 0:02:21]}  Rfe8 {[%clk 0:02:46]} 20. Bg2 {[%clk 0:02:14]}  b4 {[%clk 0:02:45]} 21. Bxe4 {[%clk 0:02:08]}  Qb6 {[%clk 0:02:46]} 22. axb4 {[%clk 0:02:02]}  axb4 {[%clk 0:02:47]} 23. Raf1 {[%clk 0:02:01]}  bxc3 {[%clk 0:02:45]} 24. bxc3 {[%clk 0:01:57]}  Rd7 {[%clk 0:02:41]} 25. Rxf7 {[%clk 0:01:54]}  Bxe5 {[%clk 0:02:41]} 26. Bxg6 {[%clk 0:01:49]}  Bxd4+ {[%clk 0:02:34]} 27. Kh1 {[%clk 0:01:48]}  Nxg6 {[%clk 0:02:30]} 28. Rxd7 {[%clk 0:01:34]}  Qc6+ {[%clk 0:02:29]} 29. Qg2 {[%clk 0:01:34]}  Qxd7 {[%clk 0:02:29]} 30. cxd4 {[%clk 0:01:34]}  Qxd4 {[%clk 0:02:30]} 31. Bh6 {[%clk 0:01:31]}  Qd5 {[%clk 0:02:23]} 32. Qxd5 {[%clk 0:01:21]}  exd5 {[%clk 0:02:24]} 33. Rd1 {[%clk 0:01:16]}  Rd8 {[%clk 0:02:24]} 34. Rd4 {[%clk 0:01:16]}  Kf7 {[%clk 0:02:24]} 35. h4 {[%clk 0:01:11]}  Ke6 {[%clk 0:02:24]} 36. h5 {[%clk 0:01:09]}  Ne5 {[%clk 0:02:24]} 37. g5 {[%clk 0:01:01]}  Ra8 {[%clk 0:02:22]} 38. Kg2 {[%clk 0:00:55]}  Ra2+ {[%clk 0:02:21]} 39. Kg3 {[%clk 0:00:54]}  Ra3+ {[%clk 0:02:21]} 40. Kg2 {[%clk 0:00:53]}  Nf3 {[%clk 0:02:18]} 41. Rf4 {[%clk 0:00:50]}  Ne1+ {[%clk 0:02:16]} 42. Kf1 {[%clk 0:00:49]}  Nd3 {[%clk 0:02:16]} 43. Rf6+ {[%clk 0:00:49]}  Ke5 {[%clk 0:02:15]} 44. Bg7 {[%clk 0:00:47]}  Ke4 {[%clk 0:02:14]} 45. Rf7 {[%clk 0:00:40]}  Nf4 {[%clk 0:02:08]} 46. h6 {[%clk 0:00:32]}  Rf3+ {[%clk 0:02:05]} 47. Ke1 {[%clk 0:00:17]}  Nd3+ {[%clk 0:02:00]} 48. Kd2 {[%clk 0:00:17]}  Rxf7 {[%clk 0:02:01]} 49. g6 {[%clk 0:00:17]}  hxg6 {[%clk 0:02:01]} 50. h7 {[%clk 0:00:18]}  Rf2+ {[%clk 0:02:01]} 51. Kc3 {[%clk 0:00:17]}  Rh2 {[%clk 0:02:01]} 52. h8=Q {[%clk 0:00:18]}  Rxh8 {[%clk 0:02:02]} 53. Bxh8 {[%clk 0:00:19]}  g5 {[%clk 0:02:02]} 54. Bd4 {[%clk 0:00:18]}  g4 {[%clk 0:02:02]} 55. Bg1 {[%clk 0:00:19]}  g3 {[%clk 0:02:03]} 56. Kd2 {[%clk 0:00:19]}  Nf4 {[%clk 0:02:03]} 57. Ke1 {[%clk 0:00:18]}  Nh3 {[%clk 0:02:03]} 58. Ba7 {[%clk 0:00:17]}  g2 {[%clk 0:02:03]} 59. Ke2 {[%clk 0:00:17]}  d4 {[%clk 0:02:03]} 60. Bxd4 {[%clk 0:00:15]}  Kxd4 {[%clk 0:02:04]} 61. Kf3 {[%clk 0:00:15]}  g1=Q {[%clk 0:02:04]} 62. Ke2 {[%clk 0:00:11]}  Qf2+ {[%clk 0:02:04]} 63. Kd1 {[%clk 0:00:08]}  Kc3 {[%clk 0:02:04]} 0-1


[Site "https://www.chess.com"]